bitfinex/quotes_ETHUSD_20250519
["timestamp","ask_amount","ask_price","bid_price","bid_amount"]
[1747667654546,4.45347645,2456.4,2455.9,4.56816081]
[1747667654890,4.45347645,2456.4,2455.9,4.56821787]
[1747667655049,4.45347645,2456.4,2456.0,4.07156917]
[1747667655245,4.07124126,2456.3,2455.9,0.49649813]
[1747667655548,8.52457408,2456.4,2455.9,4.56829003]
[1747667655746,8.52457408,2456.4,2456.0,0.456829]
[1747667655947,8.52456907,2456.4,2455.9,0.49649813]
[1747667656194,8.52457051,2456.4,2455.9,0.49649813]
[1747667656357,8.52457051,2456.4,2456.0,4.0716392]
[1747667656784,8.52457051,2456.4,2455.9,4.56823712]
[1747667657110,4.07059387,2456.7,2456.2,4.07125925]
[1747667657247,12.53459387,2456.7,2456.2,4.07125925]
[1747667657447,4.07113911,2456.4,2456.1,0.8116]
[1747667657746,8.464,2456.7,2455.8,9.2518]
[1747667657747,4.0715097,2456.1,2455.8,9.2518]
[1747667657951,4.07157351,2456.1,2455.8,10.59547834]
[1747667658566,4.07121677,2456.3,2455.8,14.6674308]
[1747667658567,4.07124445,2456.3,2455.8,14.6674308]
[1747667658767,4.071265,2456.3,2455.8,10.59547834]
[1747667659182,4.07146649,2456.2,2455.8,10.59547834]
[1747667659480,4.07168258,2456.0,2455.8,10.59547834]
[1747667659694,8.463,2456.2,2455.5,18.3798]
[1747667659848,0.80466815,2456.1,2455.4,0.11286253]
[1747667660183,4.07227716,2455.7,2455.4,0.11286253]
[1747667660391,4.07247248,2455.6,2455.4,0.11286253]
[1747667660892,4.83609032,2455.5,2455.4,0.11286253]
[1747667662189,9.28956677,2455.5,2455.4,0.11286253]
[1747667662388,4.07282205,2455.3,2454.7,4.87660409]
[1747667662585,4.0734203,2455.0,2454.8,1.28766041]
[1747667663090,4.0734203,2455.0,2454.7,0.8028]
[1747667663297,4.0732412,2455.1,2454.7,0.8028]
[1747667663599,4.07339679,2455.0,2454.7,0.8028]
[1747667665176,4.07293264,2455.3,2454.7,0.8028]
[1747667665372,4.07289831,2455.3,2454.8,4.073561]
[1747667665561,8.462,2455.4,2454.9,0.8950114]
[1747667665768,12.88456322,2455.3,2454.1,4.90163186]
[1747667666087,4.07395426,2454.7,2454.2,4.07456879]
[1747667666266,4.07464754,2454.2,2454.1,0.8269]
[1747667666463,4.07456421,2454.3,2454.0,0.11286253]
[1747667666768,0.7838,2454.2,2454.0,0.11286253]
[1747667666974,8.462,2454.3,2454.0,0.11286253]
[1747667667197,4.07481357,2454.1,2454.0,0.11286253]
[1747667668366,4.83311357,2454.1,2454.0,0.11286253]
[1747667668566,12.83311357,2454.1,2454.0,0.11286253]
[1747667668767,17.2213,2454.1,2453.1,4.83802192]
[1747667668987,17.2213,2454.1,2453.2,4.56002364]
[1747667668988,4.07556103,2453.7,2453.2,4.56002364]
[1747667669203,4.07577985,2453.6,2453.2,0.48380219]
[1747667669405,0.8089,2453.5,2452.9,4.07667433]
[1747667669570,12.53867127,2453.6,2452.9,4.07667433]
[1747667669571,12.53867876,2453.6,2453.0,4.07653757]
[1747667669768,12.53867876,2453.6,2452.9,4.07680704]
[1747667669769,12.53867876,2453.6,2453.1,4.07637328]
[1747667670205,8.463,2453.6,2453.1,4.07637328]
[1747667670370,12.5389081,2453.5,2452.9,4.07668858]
[1747667670567,12.5389081,2453.5,2453.0,0.8146]
[1747667670794,4.07598946,2453.4,2453.0,0.8146]
[1747667670988,0.8072,2453.4,2452.9,1.25476886]
[1747667671189,7.12805443,2454.0,2453.0,4.07650764]
[1747667671426,4.07531176,2453.8,2453.0,0.8146]
[1747667671593,9.2712,2453.9,2453.0,9.2876]
[1747667671594,4.07566901,2453.6,2453.0,9.2876]
[1747667671926,4.07572505,2453.6,2453.1,4.0764532]
[1747667672139,4.07589769,2453.5,2453.0,9.80943558]
[1747667672637,4.07598415,2453.4,2453.0,9.80943558]
[1747667672801,4.07573462,2453.6,2453.0,9.80943558]
[1747667673132,4.07555266,2453.7,2453.0,9.80943558]
[1747667673346,4.0759451,2453.5,2453.0,13.88597391]
[1747667673521,9.2712,2453.9,2453.2,4.07630849]
[1747667673522,0.8072,2453.9,2453.2,4.07630849]
[1747667673711,12.53914793,2453.9,2453.1,9.80324356]
[1747667673910,8.464,2453.9,2453.5,4.07580246]
[1747667674651,4.07470196,2454.2,2453.7,0.8223]
[1747667674950,4.07448152,2454.3,2453.8,4.07527327]
[1747667675312,4.07464925,2454.2,2453.8,4.07527327]
[1747667675544,4.07457456,2454.3,2453.8,4.07527327]
[1747667675718,4.86125369,2454.5,2453.8,4.07527327]
[1747667675719,4.07422887,2454.5,2453.8,4.07527327]
[1747667675925,4.07422887,2454.5,2454.0,4.07489156]
[1747667676120,4.07457,2454.3,2453.9,0.62347662]
[1747667676320,0.04106815,2454.3,2453.9,0.62347662]
[1747667676550,4.07473754,2454.2,2453.9,8.465]
[1747667676878,4.07495086,2454.1,2453.9,8.465]
[1747667677150,4.07473754,2454.2,2453.7,2.15949289]
[1747667677450,4.07491948,2454.1,2453.7,2.15949289]
[1747667677748,4.07472249,2454.2,2453.8,4.07529829]
[1747667677955,4.07472249,2454.2,2453.8,1.46997912]
[1747667678613,4.07472729,2454.2,2453.8,1.46997912]
[1747667678952,4.07472729,2454.2,2453.8,5.54527941]
[1747667679155,4.07484004,2454.1,2453.8,1.46997912]
[1747667679472,4.07473977,2454.2,2453.8,1.46997912]
[1747667679751,4.07484557,2454.1,2453.8,1.46997912]
[1747667679962,4.07485045,2454.1,2453.8,1.46997912]
[1747667680113,4.0747243,2454.2,2453.8,1.46997912]
[1747667680527,4.07482476,2454.1,2453.8,1.46997912]
[1747667681448,4.07472486,2454.2,2453.8,1.46997912]
[1747667682151,4.07472486,2454.2,2453.8,5.54527583]
[1747667682351,12.5376,2454.3,2453.9,4.07514341]
[1747667682653,4.07464888,2454.2,2453.9,0.60894696]
[1747667682955,8.463,2454.3,2453.9,0.60894696]
[1747667682956,4.07484898,2454.1,2453.9,0.60894696]
[1747667683154,4.07484898,2454.1,2453.8,1.46997912]
[1747667683155,4.0749941,2454.0,2453.8,1.46997912]
[1747667683533,4.07507418,2454.0,2453.7,2.15949289]
[1747667683728,9.2414,2454.3,2453.7,6.23493469]
[1747667683729,4.07464754,2454.2,2453.7,6.23493469]
[1747667683952,4.07464754,2454.2,2453.7,2.15949289]
[1747667684251,12.53751715,2454.3,2453.9,4.07506562]
[1747667684416,12.53751715,2454.3,2453.8,4.07523038]
[1747667684417,4.07465783,2454.2,2453.8,4.07523038]
[1747667684617,4.07465783,2454.2,2453.8,1.87753123]
[1747667685020,4.07465783,2454.2,2453.8,5.95283525]
[1747667685321,4.07457978,2454.3,2453.9,4.075139]
[1747667685721,4.07457978,2454.3,2453.8,5.95274737]
[1747667686030,4.07440954,2454.4,2453.9,4.07512188]
[1747667686246,4.07424106,2454.5,2454.0,4.07488089]
[1747667686445,4.07488516,2454.1,2453.9,0.8112146]
[1747667686748,4.07504751,2454.0,2453.7,0.8223]
[1747667687053,4.0751831,2453.9,2453.7,0.8223]
[1747667687233,4.0750601,2454.0,2453.7,0.8223]
[1747667688054,4.0749129,2454.1,2453.7,0.8223]
[1747667688270,4.0749129,2454.1,2453.7,4.89776978]
[1747667688432,4.07454833,2454.3,2453.8,4.07516009]
[1747667688645,4.07439879,2454.4,2453.9,4.075079]
[1747667688949,16.98870247,2454.5,2453.8,4.07517487]
[1747667689166,4.07431645,2454.4,2453.9,4.0750471]
[1747667689469,16.98864705,2454.5,2453.9,4.07499876]
[1747667689470,4.07449617,2454.3,2453.9,4.07499876]
[1747667689690,4.07449617,2454.3,2453.9,5.22665347]
[1747667690103,4.07440945,2454.4,2454.0,4.07496248]
[1747667690457,4.45347645,2454.5,2454.2,4.89857918]
[1747667690649,8.52765528,2454.5,2454.2,0.824]
[1747667691375,8.46,2454.7,2454.2,4.8986102]
[1747667691681,12.53271849,2454.8,2454.4,4.07425116]
[1747667692476,12.53271849,2454.8,2454.3,0.13031529]
[1747667692477,4.07365971,2454.8,2454.3,4.20470033]
[1747667692683,4.07391433,2454.7,2454.3,0.13031529]
[1747667693179,4.07391433,2454.7,2454.4,0.13031529]
[1747667693477,4.07371682,2454.8,2454.4,0.13031529]
[1747667693674,4.07371682,2454.8,2454.4,4.20462452]
[1747667693844,4.07354707,2454.9,2454.4,5.20465613]
[1747667694035,4.07370908,2454.8,2454.4,1.1303469]
[1747667694241,4.07378053,2454.8,2454.5,0.13031529]
[1747667694438,4.07398194,2454.7,2454.5,0.13031529]
[1747667694777,4.07398354,2454.6,2454.5,0.13031529]
[1747667697582,4.07448152,2454.3,2454.1,8.57786253]
[1747667697752,4.07441247,2454.4,2454.1,0.11286253]
[1747667698079,4.07440095,2454.4,2454.1,0.11286253]
[1747667698284,4.07453806,2454.3,2454.1,0.11286253]
[1747667698680,4.07419121,2454.5,2454.1,0.11286253]
[1747667698681,4.07433583,2454.4,2454.1,0.11286253]
[1747667698980,9.2338,2454.7,2454.2,4.07451941]
[1747667699158,4.073992,2454.6,2454.2,4.07451941]
[1747667699642,4.07398392,2454.6,2454.2,4.07451941]
[1747667699847,4.07439352,2454.4,2454.1,2.51711497]
[1747667700075,4.07456323,2454.3,2454.0,8.464]
[1747667700271,4.07469654,2454.2,2453.9,0.7935]
[1747667700471,4.07481357,2454.1,2453.9,0.7935]
[1747667700803,4.07497962,2454.0,2453.9,0.7935]
[1747667700962,0.8118,2454.4,2453.9,4.8916927]
[1747667700963,0.04106815,2454.3,2453.9,4.8916927]
[1747667701162,4.45347645,2454.6,2454.2,4.07461395]
[1747667701479,4.45347645,2454.6,2454.3,4.07446315]
[1747667701680,4.45347645,2454.6,2454.4,4.07431236]
[1747667701849,4.45347645,2454.6,2454.4,4.85391236]
[1747667702039,12.52771665,2454.8,2454.4,4.85391236]
[1747667702040,12.53741684,2455.0,2454.5,4.07414952]
[1747667702364,13.71787645,2455.1,2454.7,4.07374553]
[1747667702569,12.90747645,2455.1,2454.7,4.07374553]
[1747667702739,4.45347645,2455.1,2454.8,4.07352817]
[1747667702938,4.45347645,2455.1,2454.9,0.8111]
[1747667703142,4.45347645,2455.1,2454.5,0.8111]
[1747667703143,4.07331975,2455.0,2454.5,0.8111]
[1747667703346,4.07343495,2455.0,2454.5,0.8111]
[1747667703557,8.52670708,2455.1,2454.7,4.07379742]
[1747667703782,8.52670708,2455.1,2454.6,4.07392123]
[1747667703948,4.45347645,2455.1,2454.5,6.74333251]
[1747667704148,8.52668879,2455.1,2454.7,4.07381576]
[1747667704343,4.45347645,2455.1,2454.6,4.07389059]
[1747667704566,4.07340423,2455.0,2454.5,6.74327223]
[1747667704765,8.52664925,2455.1,2454.6,6.10261695]
[1747667705003,4.45347645,2455.1,2454.5,0.8111]
[1747667705218,8.52674974,2455.1,2454.6,4.07397232]
[1747667705374,4.07332174,2455.0,2454.6,4.07397232]
[1747667705575,8.52664685,2455.1,2454.7,4.07379701]
[1747667705772,8.52664685,2455.1,2454.5,0.8111]
[1747667705773,4.45347645,2455.1,2455.0,0.7523]
[1747667706014,4.07241179,2455.6,2455.1,4.07315177]
[1747667706319,4.07272653,2455.4,2455.0,15.73487408]
[1747667706488,13.72377645,2455.7,2455.0,15.73487408]
[1747667706489,16.77674342,2455.7,2455.0,14.5]
[1747667706681,4.07305873,2455.2,2454.9,8.451]
[1747667707315,4.07290074,2455.3,2454.9,8.451]
[1747667707618,4.07273476,2455.4,2455.0,4.07329416]
[1747667707776,5.27277645,2455.7,2454.9,8.451]
[1747667707976,4.07239187,2455.6,2455.2,4.07291134]
[1747667708328,8.52564679,2455.7,2455.1,0.809]
[1747667708513,4.07288247,2455.3,2455.1,0.809]
[1747667709012,4.45347645,2455.7,2455.1,0.809]
[1747667709216,8.52575554,2455.7,2455.2,4.07291095]
[1747667709383,4.07232919,2455.6,2455.2,4.07291095]
[1747667709583,4.07232919,2455.6,2455.2,1.74061565]
[1747667710021,8.52566507,2455.7,2455.3,4.07271433]
[1747667710216,4.0723346,2455.6,2455.2,5.81352658]
[1747667710628,8.52573398,2455.7,2455.2,5.81352658]
[1747667710788,8.52573398,2455.7,2455.3,4.07280483]
[1747667710985,8.52573398,2455.7,2455.2,1.74061565]
[1747667711183,8.52573398,2455.7,2455.3,0.66227523]
[1747667711533,4.07127339,2456.3,2455.8,4.07191189]
[1747667711679,0.8231,2456.4,2455.5,9.2635]
[1747667711884,0.8231,2456.4,2455.8,4.07183213]
[1747667711885,4.07133513,2456.2,2455.8,4.07183213]
[1747667712087,4.07158272,2456.1,2455.6,4.0722443]
[1747667712292,4.07158272,2456.1,2455.7,1.74082346]
[1747667712592,4.07158272,2456.1,2455.8,14.5]
[1747667713035,4.07158272,2456.1,2455.7,1.74082346]
[1747667713497,4.07158272,2456.1,2455.7,20.31297333]
[1747667713994,4.0717684,2456.0,2455.7,16.24082346]
[1747667714616,4.07116394,2456.3,2455.7,14.5]
[1747667714804,4.07194824,2455.9,2455.7,14.5]
[1747667715011,4.07203079,2455.8,2455.5,9.2635]
[1747667715330,4.07139865,2456.2,2455.5,9.2635]
[1747667715622,4.07156943,2456.1,2455.6,4.99853111]
[1747667715861,4.07116394,2456.3,2455.7,4.07214908]
[1747667716040,4.07123413,2456.3,2455.7,4.07215865]
[1747667716325,4.07133935,2456.2,2455.8,0.49985087]
[1747667716499,4.07140059,2456.2,2455.6,0.92635]
[1747667716905,4.07140059,2456.2,2455.7,4.07207905]
[1747667717119,12.51503403,2456.4,2455.9,0.7939]
[1747667717311,4.07103403,2456.4,2455.9,4.86565201]
[1747667717530,4.0714016,2456.2,2455.9,0.7939]
[1747667717732,9.2436,2456.6,2455.6,4.998617]
[1747667718036,9.2436,2456.6,2455.3,0.8263]
[1747667718037,0.8058,2456.1,2455.3,0.8263]
[1747667718371,4.07253952,2455.5,2455.2,0.11286253]
[1747667718534,4.07211256,2455.8,2455.2,20.04683437]
[1747667718717,4.07211256,2455.8,2455.3,4.07267992]
[1747667718901,4.07236449,2455.6,2455.2,15.97390447]
[1747667719100,4.07256258,2455.5,2455.2,15.97390447]
[1747667719536,4.07241412,2455.6,2455.2,15.97390447]
[1747667719839,4.07241412,2455.6,2455.3,1.68002045]
[1747667720022,0.8058,2456.1,2455.3,1.68002045]
[1747667720023,4.07190426,2455.9,2455.4,4.07249952]
[1747667720196,8.441,2455.9,2455.5,4.07245751]
[1747667720396,12.51283381,2455.9,2455.5,0.7914]
[1747667720602,4.07201908,2455.8,2455.5,1.03854205]
[1747667720923,8.441,2455.9,2455.5,1.03854205]
[1747667720924,12.5129289,2455.9,2455.5,1.03854205]
[1747667721130,8.441,2455.9,2455.5,1.03854205]
[1747667721428,4.07218429,2455.7,2455.3,2.47062045]
[1747667722033,4.07207028,2455.8,2455.3,2.47062045]
[1747667722194,8.441,2455.9,2455.3,2.47062045]
[1747667722195,4.07176917,2456.0,2455.5,4.07235904]
[1747667722395,4.07157676,2456.1,2455.6,4.07221521]
[1747667722598,4.07169016,2456.0,2455.6,0.40722152]
[1747667722995,4.07200916,2455.8,2455.6,0.40722152]
[1747667723227,16.889,2456.2,2455.3,2.47062045]
[1747667723401,4.07210644,2455.8,2455.3,6.54336392]
[1747667723603,4.07210644,2455.8,2455.4,4.07263542]
[1747667723842,20.9603984,2456.2,2455.5,4.07236372]
[1747667723843,4.07165929,2456.1,2455.5,4.07236372]
[1747667724139,4.07172675,2456.0,2455.5,4.07236372]
[1747667724335,4.07172675,2456.0,2455.6,0.81449128]
[1747667724701,4.07159291,2456.1,2455.6,4.88672161]
[1747667724952,20.96038803,2456.2,2455.6,4.88672161]
[1747667724953,8.449,2456.2,2455.8,4.07195347]
[1747667725110,4.07125567,2456.3,2455.8,4.07195347]
[1747667725425,4.07159385,2456.1,2455.7,0.7836]
[1747667725630,12.89247645,2456.4,2455.7,1.41185437]
[1747667725806,4.0717935,2456.0,2455.5,13.30402577]
[1747667726016,4.07116394,2456.3,2455.5,13.30402577]
[1747667726415,4.07197386,2455.9,2455.5,13.30408294]
[1747667726724,12.89247645,2456.4,2455.6,4.07227313]
[1747667726924,8.52453944,2456.4,2455.9,4.07169295]
[1747667727127,8.52453944,2456.4,2455.6,1.33038731]
[1747667727128,4.07118529,2456.3,2455.8,4.07190802]
[1747667727750,4.07125612,2456.3,2455.7,0.8137]
[1747667727954,4.07125612,2456.3,2455.5,8.448]
[1747667728118,4.07193116,2455.9,2455.5,10.7441175]
[1747667728321,4.07172793,2456.0,2455.6,4.07231625]
[1747667728520,4.07189529,2455.9,2455.5,10.7441175]
[1747667728819,4.07207454,2455.8,2455.5,10.7441175]
[1747667729040,4.07213676,2455.8,2455.5,10.7441175]
[1747667729943,4.07218468,2455.7,2455.5,10.7441175]
[1747667730138,0.7809,2456.3,2455.5,8.448]
[1747667730139,4.11273569,2456.0,2455.5,8.448]
[1747667730450,4.07233509,2455.6,2455.2,0.93886253]
[1747667730650,4.07210524,2455.8,2455.4,4.0726219]
[1747667730851,12.50789467,2455.9,2455.5,4.07248678]
[1747667731147,0.7714,2456.1,2455.5,4.88701766]
[1747667731350,8.436,2456.0,2455.2,0.826]
[1747667731553,4.07298794,2455.2,2455.0,0.11286253]
[1747667731728,4.07315384,2455.1,2455.0,0.11286253]
[1747667732140,8.436,2455.3,2455.0,0.11286253]
[1747667732338,12.50892689,2455.3,2455.0,0.11286253]
[1747667733061,4.07315384,2455.1,2455.0,0.11286253]
[1747667733244,0.789,2456.1,2455.0,0.90116253]
[1747667733555,4.07175343,2456.0,2455.5,4.07240046]
[1747667733915,4.07140814,2456.2,2455.7,4.07207338]
[1747667735533,4.07140814,2456.2,2455.8,4.07195408]
[1747667735735,4.07124577,2456.3,2455.8,4.07195408]
[1747667736053,4.07136289,2456.2,2455.8,4.07195408]
[1747667736356,4.07136289,2456.2,2455.9,0.40719541]
[1747667737871,4.07124577,2456.3,2455.9,0.40719541]
[1747667737872,17.6922,2456.5,2455.9,0.40719541]
[1747667738171,4.07107699,2456.4,2456.0,0.7602]
[1747667738382,4.07107699,2456.4,2456.0,4.8318142]
[1747667738540,4.88835429,2456.8,2456.2,4.07120519]
[1747667738859,4.07073808,2456.6,2456.1,4.07138656]
[1747667739062,4.07073808,2456.6,2456.2,14.98315866]
[1747667739374,4.07116394,2456.3,2456.2,14.5]
[1747667739570,4.0715183,2456.1,2455.8,8.435]
[1747667740242,4.07166123,2456.0,2455.7,0.8229]
[1747667740560,8.434,2456.5,2455.8,0.89357625]
[1747667740735,4.07115627,2456.4,2455.8,4.96553921]
[1747667740939,4.07115627,2456.4,2455.9,4.07182185]
[1747667741271,4.07134428,2456.2,2455.8,0.89357625]
[1747667741479,4.07166123,2456.0,2455.9,0.57884667]
[1747667741660,4.07166123,2456.0,2455.8,0.89357625]
[1747667741973,4.07182702,2455.9,2455.8,0.89357625]
[1747667742272,4.07215865,2455.7,2455.6,0.11286253]
[1747667742862,4.90535865,2455.7,2455.6,0.11286253]
[1747667743190,7.95832562,2455.7,2455.6,0.11286253]
[1747667743340,15.95832562,2455.7,2455.6,0.11286253]
[1747667743687,4.07315384,2455.1,2455.0,0.11286253]
[1747667744477,4.07315384,2455.1,2455.0,0.45289617]
[1747667746575,4.07315384,2455.1,2455.0,0.34003364]
[1747667747585,4.07279271,2455.4,2455.0,0.34003364]
[1747667747740,4.07295065,2455.3,2455.0,0.34003364]
[1747667747940,4.07299411,2455.2,2455.0,0.34003364]
[1747667748691,4.07283534,2455.3,2454.8,4.07357812]
[1747667748997,4.07315994,2455.1,2454.9,0.89145489]
[1747667749297,4.0730757,2455.2,2454.8,14.5]
[1747667749871,4.07265618,2455.4,2454.8,18.57364843]
[1747667750075,4.07290878,2455.3,2454.8,18.57364843]
[1747667750271,4.07265618,2455.4,2454.8,18.57364843]
[1747667750482,4.07300555,2455.2,2454.8,14.5]
[1747667750786,4.87187052,2455.6,2454.9,1.93409669]
[1747667750787,4.07249032,2455.5,2454.9,1.93409669]
[1747667751101,4.07282205,2455.3,2454.7,0.7672]
[1747667751314,5.25297645,2455.6,2454.7,0.7672]
[1747667751315,4.07323888,2455.1,2454.7,0.7672]
[1747667751481,4.07315125,2455.2,2454.7,4.84097075]
[1747667751680,4.07315125,2455.2,2454.8,4.07365078]
[1747667751883,4.07289479,2455.3,2454.8,4.07365078]
[1747667752081,4.07289479,2455.3,2454.9,0.89146428]
[1747667752467,4.07289479,2455.3,2454.9,0.93219472]
[1747667753103,4.07300166,2455.2,2454.9,0.89146428]
[1747667753303,4.07265618,2455.4,2454.9,0.89146428]
[1747667753529,4.0732299,2455.1,2454.7,15.2672]
[1747667753905,4.07307751,2455.2,2454.7,19.34100949]
[1747667754102,5.25297645,2455.6,2454.8,4.11436969]
[1747667754103,4.07295343,2455.3,2454.8,4.11436969]
[1747667754271,4.07299304,2455.2,2454.9,1.93815697]
[1747667754471,4.0729509,2455.3,2454.9,1.93815697]
[1747667754667,0.7995,2455.6,2454.9,1.97888749]
[1747667754895,4.07224471,2455.7,2455.2,0.8131]
[1747667754896,4.07249898,2455.5,2455.2,0.8131]
[1747667755201,0.8196,2455.8,2455.0,9.2491]
[1747667755380,4.07315384,2455.1,2455.0,8.436]
[1747667755580,4.07315384,2455.1,2455.0,9.35593]
[1747667756178,4.07306153,2455.2,2455.0,9.35593]
[1747667756384,12.88447645,2455.7,2455.1,4.0731459]
[1747667756580,4.07255512,2455.5,2455.1,0.7936]
[1747667756889,8.52567692,2455.7,2455.1,0.7936]
[1747667757095,4.07276415,2455.4,2455.1,2.21589465]
[1747667757905,4.07284605,2455.3,2455.1,2.21589465]
[1747667758505,4.07275659,2455.4,2455.1,2.21589465]
[1747667759610,4.07283596,2455.3,2455.1,2.21589465]
[1747667759812,4.07283596,2455.3,2455.2,1.06518947]
[1747667760116,4.07290234,2455.3,2455.0,8.436]
[1747667760311,4.0725156,2455.5,2455.0,8.436]
[1747667760497,4.07245036,2455.6,2455.1,0.7883]
[1747667760695,4.07249451,2455.5,2455.1,0.7883]
[1747667761212,4.07232448,2455.6,2455.1,0.7883]
[1747667761398,4.07298794,2455.2,2455.1,0.7883]
[1747667761713,4.07232448,2455.6,2454.9,0.7883]
[1747667761714,4.07315683,2455.1,2454.9,0.7883]
[1747667762014,4.07365162,2454.8,2454.7,0.93886253]
[1747667762218,4.07365162,2454.8,2454.7,0.11286253]
[1747667764323,0.7855,2454.5,2454.2,8.436]
[1747667764530,4.07448524,2454.3,2454.2,1.18374449]
[1747667764816,4.07432738,2454.4,2454.2,0.34014449]
[1747667765334,0.7764,2455.3,2454.3,8.436]
[1747667765499,4.07300776,2455.2,2454.9,0.8009]
[1747667765689,4.0732452,2455.1,2454.9,0.8009]
[1747667766399,4.07331975,2455.0,2454.9,0.8009]
[1747667766598,4.07331975,2455.0,2454.7,15.3179]
[1747667766808,4.07365162,2454.8,2454.7,17.25710401]
[1747667766994,4.07365162,2454.8,2454.4,0.8179]
[1747667766995,4.07365493,2454.8,2454.4,0.8179]
[1747667767523,4.07349882,2454.9,2453.9,0.11286253]
[1747667767524,4.07497962,2454.0,2453.9,0.11286253]
[1747667767723,4.07491824,2454.1,2453.7,0.7529]
[1747667767885,4.07460386,2454.3,2453.8,4.55808207]
[1747667767886,4.07456884,2454.3,2453.8,4.55808207]
[1747667768085,4.07440613,2454.4,2453.8,0.48284337]
[1747667768289,4.07451834,2454.3,2453.8,14.98284337]
[1747667768531,4.07441253,2454.4,2453.9,4.07512506]
[1747667768821,4.07451448,2454.3,2454.0,2.31331182]
[1747667769023,3.81686697,2454.6,2453.8,14.98284337]
[1747667769226,4.07514568,2453.9,2453.7,0.7529]
[1747667769519,4.07524162,2453.9,2453.5,1.74384401]
[1747667769681,4.07532736,2453.8,2453.5,1.74384401]
[1747667769884,4.07564395,2453.6,2453.5,0.97954401]
[1747667770113,21.73335691,2454.2,2453.5,0.97954401]
[1747667770283,4.07548126,2453.7,2453.5,0.97954401]
[1747667770502,4.07564395,2453.6,2453.5,0.97954401]
[1747667770713,17.6587,2454.2,2453.5,0.97954401]
[1747667770918,21.7333879,2454.2,2453.5,0.97954401]
[1747667771100,4.07556411,2453.7,2453.5,1.31978554]
[1747667771300,4.07556411,2453.7,2453.6,0.34022766]
[1747667771502,17.6587,2454.2,2453.6,0.34022766]
[1747667771804,4.88107784,2453.7,2453.6,0.34022766]
[1747667772012,4.07547784,2453.7,2453.6,0.34022766]
[1747667773732,12.50547784,2453.7,2453.6,0.34022766]
[1747667773933,4.07564395,2453.6,2453.5,0.97954401]
[1747667775131,4.85344395,2453.6,2453.5,0.97954401]
[1747667775317,9.3069204,2453.6,2453.5,0.97954401]
[1747667775521,17.3069204,2453.6,2453.5,0.97954401]
[1747667775704,17.8569204,2453.6,2453.5,0.97954401]
[1747667776498,37.22388737,2453.6,2453.5,0.97954401]
[1747667776817,37.77388737,2453.6,2453.5,0.97954401]
[1747667777733,37.77388737,2453.6,2452.2,0.7925]
[1747667777734,4.07754301,2452.5,2452.2,0.7925]
[1747667778040,4.07713947,2452.7,2452.2,0.7925]
[1747667778041,4.45347645,2452.7,2452.3,4.41813207]
[1747667778193,8.53077588,2452.7,2452.4,0.92885908]
[1747667778396,8.53077588,2452.7,2452.3,0.34040802]
[1747667778607,4.07753548,2452.5,2452.3,0.34040802]
[1747667778797,4.45347645,2452.7,2452.3,0.34040802]
[1747667778998,4.07735548,2452.6,2452.3,0.34040802]
[1747667779298,4.07739463,2452.6,2452.3,0.34040802]
[1747667779700,4.07749599,2452.5,2452.3,0.34040802]
[1747667779914,4.45347645,2452.7,2452.3,0.34040802]
[1747667780323,4.07763823,2452.4,2452.3,0.34040802]
[1747667780961,12.51163823,2452.4,2452.3,0.34040802]
[1747667781329,20.51163823,2452.4,2452.3,0.34040802]
[1747667781852,25.78541468,2452.4,2452.3,0.34040802]
[1747667782021,4.07871241,2451.8,2451.6,6.40029013]
[1747667782213,4.07871241,2451.8,2451.7,0.34049133]
[1747667782645,4.07849958,2451.9,2451.7,0.34049133]
[1747667782838,4.0786361,2451.8,2451.7,0.34049133]
[1747667783038,8.432,2452.0,2451.7,0.34049133]
[1747667783039,12.51039736,2452.0,2451.7,0.34049133]
[1747667783240,12.51031971,2452.0,2451.7,0.34049133]
[1747667783830,4.07859329,2451.9,2451.7,0.34049133]
[1747667784165,4.0786361,2451.8,2451.7,0.34049133]
[1747667784520,4.9081361,2451.8,2451.7,0.34049133]
[1747667784754,4.07880246,2451.7,2451.6,6.40029013]
[1747667786745,8.53227891,2451.7,2451.6,6.40029013]
[1747667787028,12.07880246,2451.7,2451.6,6.40029013]
[1747667787240,13.38810246,2451.7,2451.6,6.40029013]
[1747667787456,13.45693522,2451.5,2451.4,0.14928828]
[1747667787617,42.00490219,2451.5,2451.4,0.14928828]
[1747667787823,50.98890219,2451.5,2451.4,0.14928828]
[1747667789658,51.19692086,2451.5,2451.4,0.14928828]
[1747667790630,4.07996736,2451.0,2450.9,5.82613809]
[1747667790932,8.436,2451.0,2450.9,5.82613809]
[1747667791140,8.436,2451.1,2450.9,6.4087519]
[1747667791339,4.07996736,2451.0,2450.9,5.82613809]
[1747667791966,12.51589012,2451.1,2450.9,5.82613809]
[1747667792126,8.436,2451.1,2450.9,5.82613809]
[1747667792332,8.436,2451.1,2451.0,0.8087]
[1747667792554,4.07996736,2451.0,2450.9,5.82613809]
[1747667793145,12.51585736,2451.1,2450.9,5.82613809]
[1747667793565,8.436,2451.1,2450.9,5.82613809]
[1747667793767,17.90674152,2451.5,2451.1,4.0797928]
[1747667793768,8.436,2451.5,2451.1,4.0797928]
[1747667793971,4.07970536,2451.2,2450.9,6.4905619]
[1747667794176,4.07970536,2451.2,2450.9,5.82613809]
[1747667794472,4.88136736,2451.0,2450.9,5.82613809]
[1747667794631,12.51596736,2451.0,2450.9,5.82613809]
[1747667796975,20.51596736,2451.0,2450.9,5.82613809]
[1747667797268,17.1887,2451.0,2450.9,5.82613809]
[1747667798128,17.7387,2451.0,2450.9,5.82613809]
[1747667799776,17.1887,2451.0,2450.9,5.82613809]
[1747667800384,17.7387,2451.0,2450.9,5.82613809]
[1747667801566,8.7527,2451.0,2450.9,5.82613809]
[1747667801773,25.6277,2451.0,2450.9,5.82613809]
[1747667802373,26.1777,2451.0,2450.9,5.82613809]
[1747667803885,17.1907,2451.0,2450.9,5.82613809]
[1747667804188,25.6287,2451.0,2450.9,5.82613809]
[1747667806806,8.7527,2451.0,2450.9,5.82613809]
[1747667807105,25.6307,2451.0,2450.9,5.82613809]
[1747667807407,16.878,2451.0,2450.9,5.82613809]
[1747667809683,24.878,2451.0,2450.9,5.82613809]
[1747667809920,25.6901,2451.0,2450.9,5.82613809]
[1747667813725,17.6901,2451.0,2450.9,5.82613809]
[1747667814721,25.6901,2451.0,2450.9,5.82613809]
[1747667817462,26.2401,2451.0,2450.9,5.82613809]
[1747667817647,25.6901,2451.0,2450.9,5.82613809]
[1747667818641,26.2401,2451.0,2450.9,5.82613809]
[1747667820706,0.55,2450.8,2450.3,6.02758781]
[1747667820906,3.0690753,2450.5,2450.3,6.02758781]
[1747667821265,16.876,2450.4,2450.3,6.02758781]
[1747667821645,17.6324,2450.4,2450.3,6.02758781]
[1747667821940,17.6324,2450.4,2450.3,6.85288781]
[1747667821941,16.876,2450.4,2450.3,6.85288781]
[1747667822744,8.434,2450.4,2450.3,6.85288781]